Cogmind - Beta 11 *** ADVENTURER MODE // 2022.04.17 @ 16:54:06 Player: Dhrov Result: Self-destructed Performance ------------- Evolutions (1) 500 Regions Visited (2) 400 Robots Destroyed (16) 80 Value Destroyed (320) 320 Prototype IDs (0) 0 Alien Tech Used (0) 0 Bonus (0) 0 TOTAL SCORE: 1300 Bonus ------- None Cogmind --------- Core Integrity 227/400 Matter 217/300 Energy 265/265 System Corruption 0% Temperature Hot (279) Movement Treading (160) Location -9/Materials Parts ------- > --- POWER (1) -------- Improved Ion Engine > --- PROPULSION (2) --- Improved Treads Improved Treads > --- UTILITY (4) ------ Large Storage Unit Signal Interpreter Improved Targeting Computer Hardened Light Armor Plating > --- WEAPON (2) ------- Beam Rifle Heavy Assault Rifle > --- INVENTORY (15) --- Light Ion Engine Improved Treads Improved Treads Improved Treads Improved Treads Improved Treads Large Storage Unit High-capacity Matter Pod (178) Structural Scanner Sensor Array ECM Suite Light Armor Plating Medium Laser Small Laser Peak State ------------ > --- POWER ------------ Improved Ion Engine > --- PROPULSION ------- Improved Treads Improved Treads > --- UTILITY ---------- Large Storage Unit Signal Interpreter Improved Targeting Computer Hardened Light Armor Plating > --- WEAPON ----------- Beam Rifle Heavy Assault Rifle > --- INVENTORY -------- Light Ion Engine Improved Treads Improved Treads Improved Treads Improved Treads Improved Treads Large Storage Unit High-capacity Matter Pod Structural Scanner Sensor Array ECM Suite Light Armor Plating Light Armor Plating Medium Laser Small Laser [Rating: 18] Favorites ----------- Power Ion Engine Engine Ion Engine Propulsion Improved Treads Treads Improved Treads Utility Large Storage Unit Device Structural Scanner Storage Large Storage Unit Processor Improved Targeting Computer Protection Light Armor Plating Weapon Light Assault Rifle Energy Gun Medium Laser Ballistic Gun Light Assault Rifle Build | -11 -10 -9 ------- Run | Scr Mat Mat Slots Evolved 2 | . . 2 Power . | . . . Propulsion . | . . . Utility 2 | . . 2 Weapon . | . . . Parts Attached 28 | 6 10 12 Power 2 | 1 . 1 Engine 2 | 1 . 1 Core . | . . . Reactor . | . . . Propulsion 5 | 2 3 . Treads 5 | 2 3 . Leg . | . . . Wheel . | . . . Hover . | . . . Flight . | . . . Utility 14 | 1 4 9 Device 5 | . 1 4 Storage 3 | 1 2 . Processor 2 | . 1 1 Hackware . | . . . Protection 4 | . . 4 Artifact . | . . . Weapon 7 | 2 3 2 Energy Gun 3 | . 2 1 Energy Cannon . | . . . Ballistic Gun 4 | 2 1 1 Ballistic Cannon . | . . . Launcher . | . . . Special Weapon . | . . . Impact Weapon . | . . . Slashing Weapon . | . . . Piercing Weapon . | . . . Special Melee Weapon . | . . . Unidentified Prototypes . | . . . Parts Lost . | . . . Power . | . . . Propulsion . | . . . Utility . | . . . Weapon . | . . . Highest Loss Streak . | . . . To Critical Strikes . | . . . Average Slot Usage (%) 99 | . 98 100 Engine 12 | . 14 11 Treads 25 | . 28 22 Device 5 | . 2 9 Storage 12 | . 14 11 Processor 12 | . 10 18 Protection 1 | . . 5 Energy Gun 9 | . 8 11 Ballistic Gun 16 | . 19 11 Naked Turns . | . . . Heaviest Build 38 | 13 28 38 Greatest Support 46 | 40 46 46 Greatest Overweight (x) . | . . . Average Overweight (x) . | . . . Largest Inventory Capacity 15 | 8 15 15 Average Capacity 13 | 6 13 15 Most Carried 15 | 4 15 15 Average Carried 12 | 2 11 13 Final Capacity 15 | 8 15 15 Final Carried 15 | 4 15 14 Class Distribution -------------------- 100% | Mutant Dominant Class ---------------- Mutant | -10/Materials Mutant | -9/Materials Resources | -11 -10 -9 ----------- Run | Scr Mat Mat Matter Collected 658 | 260 239 159 Remotely . | . . . Salvage Created 398 | . 153 245 Parts 33 | . 18 15 Haulers Intercepted 1 | . 1 . Recyclers Shooed . | . . . Parts Field Recycled . | . . . Retrieved Matter . | . . . Parts Self-Destructed . | . . . Prevented . | . . . Kills | -11 -10 -9 ------- Run | Scr Mat Mat Combat Hostiles Destroyed 15 | . 9 6 Guns 15 | . 9 6 Classes Destroyed 5 | . 2 3 Hauler 1 | . 1 . Swarmer 9 | . 9 . Grunt 4 | . . 4 Duelist 1 | . . 1 Sentry 1 | . . 1 Best Kill Streak 3 | . 3 3 Combat Bots Only 3 | . 3 3 Max Kills in Single Turn 1 | . 1 1 Gunslinging . | . . . Exploded . | . . . Melee . | . . . Uniques/NPCs Destroyed . | . . . Combat | -11 -10 -9 -------- Run | Scr Mat Mat Damage Taken 584 | . 117 467 Core 199 | . 26 173 Absorbed by Shields . | . . . Core Remaining (%) 94 | 100 89 . Volleys Fired 35 | . 14 21 Largest 2 | . 2 2 Hottest 79 | . 40 79 Shots Fired 70 | . 28 42 Gun 70 | . 28 42 Cannon . | . . . Launcher . | . . . Special . | . . . Kinetic 49 | . 28 21 Thermal 21 | . . 21 Explosive . | . . . Electromagnetic . | . . . Robot Hit Streak 8 | . 5 8 Robot Miss Streak 2 | . 2 2 Penetration Max . | . . . Secondary Targets 1 | . 1 . Max Gunslinging Chain 1 | . 1 . Shots Hit Robots 47 | . 16 31 Core Hits 25 | . 12 13 Critical Kills . | . . . Critical Parts Destroyed . | . . . Critical Strikes 2 | . . 2 Burn 2 | . . 2 Melee Attacks . | . . . Impact . | . . . Slashing . | . . . Piercing . | . . . Sneak Attacks . | . . . Combat Hostiles . | . . . Follow-up Attacks . | . . . Damage Inflicted 578 | . 171 407 Guns 560 | . 153 407 Cannons . | . . . Explosions . | . . . Melee . | . . . Ramming 18 | . 18 . Kinetic 356 | . 153 203 Thermal 204 | . . 204 Explosive . | . . . Electromagnetic . | . . . Impact . | . . . Slashing . | . . . Piercing . | . . . Highest Corruption 1 | . 1 . Average Corruption 1 | . 1 . Corruption Purged . | . . . Corruption Blocked . | . . . Effects 7 | . 7 . Message Errors 2 | . 2 . Matter Fused 1 | . 1 . Heat Flow Errors 1 | . 1 . Parts Rejected 1 | . 1 . Data Loss (minor) 2 | . 2 . Overload Shots . | . . . Overflow Damage . | . . . Projectiles . | . . . Explosions . | . . . Melee . | . . . Knockbacks . | . . . Impact . | . . . Kinetic . | . . . Secondary . | . . . Self-Inflicted Damage . | . . . Shots . | . . . Rammed 3 | . 3 . Targets Rammed 4 | . 4 . Kicked . | . . . Crushed 1 | . 1 . Highest Temperature 363 | . 85 363 Average Temperature 135 | . 47 140 Received Heat Transfer 201 | . . 201 Siege Activations . | . . . Robots Corrupted . | . . . Combat Hostiles . | . . . Parts Fried . | . . . Impact Corruptions . | . . . Robots Melted . | . . . Combat Hostiles . | . . . Parts Melted 1 | . . 1 Heat Transferred 666 | . . 666 Parts Sabotaged . | . . . Parts Stolen . | . . . Parts Stripped . | . . . Power Chain Reactions . | . . . Missiles Intercepted . | . . . Alert | -11 -10 -9 ------- Run | Scr Mat Mat Peak Influence 244 | . 244 101 Initial 13 | . . 13 Average 57 | . 75 30 Maximum Alert Level 1 | . 1 . Low Security (%) 98 | 100 97 100 Level 1 1 | . 2 . Level 2 . | . . . Level 3 . | . . . Level 4 . | . . . Level 5 . | . . . High Security . | . . . Max Security . | . . . Squads Dispatched 1 | . . 1 Investigation 1 | . . 1 Extermination . | . . . Reinforcement . | . . . Assault . | . . . Garrison . | . . . Intercept . | . . . Searches Triggered . | . . . Construction Impeded . | . . . Haulers Reinforced . | . . . Active Scanning Responses . | . . . Cargo Convoy Interrupts . | . . . Stealth | -11 -10 -9 --------- Run | Scr Mat Mat Distress Signals 1 | . 1 . Communications Jammed . | . . . Distress Signals . | . . . Times Spotted 31 | . 20 11 Peak Tracking Total 5 | . 5 4 Tactical Retreats 1 | . 1 . Traps | -11 -10 -9 ------- Run | Scr Mat Mat Traps Triggered 1 | . 1 . Indirectly . | . . . Trap Hack Attempts . | . . . Triggered . | . . . Disarmed . | . . . Reprogrammed . | . . . Reused . | . . . Traps Extracted . | . . . Installed . | . . . Triggered . | . . . Machines | -11 -10 -9 ---------- Run | Scr Mat Mat Machines Disabled . | . . . Max in Single Turn . | . . . Machines Sabotaged . | . . . Garrisons Compromised . | . . . Overloaded Fab Kills . | . . . Hacking | -11 -10 -9 --------- Run | Scr Mat Mat Machines Accessed 5 | . 4 1 Terminals 4 | . 4 . Fabricators . | . . . Repair Stations . | . . . Recycling Units . | . . . Scanalyzers 1 | . . 1 Garrison Access . | . . . Total Hacks 12 | . 8 4 Successful 9 | . 5 4 Failed 3 | . 3 . Catastrophic . | . . . Database Lockouts . | . . . Manual . | . . . Terminals 8 | . 8 . Fabricators . | . . . Repair Stations . | . . . Recycling Units . | . . . Scanalyzers 4 | . . 4 Garrison Access . | . . . Terminal Hacks 5 | . 5 . Locate Traps 1 | . 1 . Dispatch Records 1 | . 1 . Transport Status 1 | . 1 . Zone Layout 2 | . 2 . Fabricator Hacks . | . . . Repair Station Hacks . | . . . Recycling Unit Hacks . | . . . Scanalyzer 4 | . . 4 Insert Component 2 | . . 2 Analyze 2 | . . 2 Garrison Access Hacks . | . . . Unauthorized Hacks . | . . . Terminals . | . . . Fabricators . | . . . Repair Stations . | . . . Recycling Units . | . . . Scanalyzers . | . . . Garrison Access . | . . . Data Cores Recovered . | . . . Used . | . . . Hacking Detections 3 | . 2 1 Full Trace Events 1 | . . 1 Feedback Events . | . . . Feedback Blocked . | . . . Robot Schematics Acquired . | . . . Robots Built . | . . . Authchips . | . . . Time . | . . . Total Robot Build Rating . | . . . Part Schematics Acquired 1 | . . 1 Parts Built . | . . . Authchips . | . . . Time . | . . . Total Part Build Rating . | . . . Parts Repaired . | . . . Time . | . . . Parts Recycled . | . . . Recycled Matter . | . . . Retrieved Matter . | . . . Retrieved Components . | . . . Parts Scanalyzed 2 | . . 2 Part Schematics Acquired 1 | . . 1 Parts Damaged . | . . . Bothacking | -11 -10 -9 ------------ Run | Scr Mat Mat Used RIF Installer . | . . . Robots Hacked . | . . . Non-combat . | . . . Combat . | . . . Robot Hacks Applied . | . . . Relay Couplers Released . | . . . Fabnet Peak Effective % . | . . . Robots Rewired . | . . . Allies Hacked . | . . . Hacks Repelled . | . . . Allies | -11 -10 -9 -------- Run | Scr Mat Mat Total Allies . | . . . Largest Group . | . . . Highest-Rated Group . | . . . Highest-Rated Ally . | . . . Total Orders . | . . . Ally Attacks . | . . . Total Damage . | . . . Kills . | . . . Allies Corrupted . | . . . Allies Melted . | . . . Intel | -11 -10 -9 ------- Run | Scr Mat Mat Robot Analysis Total . | . . . Derelict Logs Recovered . | . . . Drone Launches . | . . . Drone Recoveries . | . . . Exploration | -11 -10 -9 ------------- Run | Scr Mat Mat Turns Passed 1910 | 87 1183 640 Spaces Moved 909 | 50 628 231 Core 5 | 5 . . Treads 904 | 45 628 231 Legs . | . . . Wheels . | . . . Hover . | . . . Flight . | . . . Fastest Speed 50 | 50 160 160 Average Speed 159 | 149 160 160 Slowest Speed 160 | 160 160 160 Overloaded Moves . | . . . Propulsion Burnouts . | . . . Robots Hopped . | . . . Cave-ins Triggered . | . . . Exploration Rate (%) 34 | 5 84 13 Regions Visited 2 Branch Regions . Pre-discovered Areas . | . . . Known Exits Taken . | . . . Unknown Exits Taken 2 | 1 1 . Scrap Searched . | . . . Spaces Dug . | . . . Terrain Destroyed . | . . . Melee . | . . . Projectile . | . . . AOE . | . . . Terrain Rammed . | . . . Walls Destroyed . | . . . Machines Disabled . | . . . Actions | -11 -10 -9 --------- Run | Scr Mat Mat Total 1296 | 60 779 457 Wait 290 | . 100 190 Move 907 | 49 627 231 Hop . | . . . Pick Up 20 | 5 15 . Fast Attach 8 | 5 3 . Attach 3 | 1 . 2 Detach . | . . . Swap 17 | . 7 10 Drop 12 | . 9 3 Fire 35 | . 14 21 Melee . | . . . Ram . | . . . Kick . | . . . Crush 4 | . 4 . Escape Stasis . | . . . Rewire . | . . . Trap . | . . . Miscellaneous . | . . . Route ------- -11/Scrapyard -10/Materials (discovered 4 exits: *Mat x3 / [*Min]) -9/Materials History --------- Turn | Location | Event 46 | -11/Scrapyard | Discovered new exit (range 15) 88 | -11/Scrapyard | Entered Materials 184 | -10/Materials | Discovered new exit (range 14) 254 | -10/Materials | Discovered new exit (range 13) 304 | -10/Materials | Build established: Mutant 370 | -10/Materials | Discovered new exit (range 12) 703 | -10/Materials | Discovered new exit (range 10) 1271 | -10/Materials | Entered another Materials area 1271 | -9/Materials | Evolved 2 slots: Utility x2 1911 | -9/Materials | Self-destructed Last Messages --------------- Acquired 31 matter. Acquired 33 matter. Y-45 Defender suffers critical hit (Burn). Y-45 Defender destroyed. Dropped Lgt. Assault Rifle. Acquired 58 matter. U-05 Engineer builds a Door. Dropped Ion Engine. Dropped Lgt. Armor Plating. R-06 Scavenger collects Sml. Laser. R-06 Scavenger collects Aluminum Leg. R-06 Scavenger collects Heat Sink. C-30 ARC bursts open, deploying its payload. L-31 Rogue unfolds itself. G-34 Mercenary unfolds itself. L-31 Rogue destroyed. Destroyed Ion Engine. G-34 Mercenary destroyed. Fusion Modulator explodes. R-06 Scavenger collects Imp. Aluminum Leg. Map ----- +----------------------------------------------------+ | ?????????????????????????????????????????????????? | | ?????????????????????????????????????????????????? | | ??????????????????####???????????????????????????? | | ??????????????????# ???????????????????????????? | | ??????????????????# "???????????????????????????? | | ??????????????????# """"" #?????????????????????? | | ??????????????????# """"" #?????????????????????? | | ??????????????????# #?????????????????????? | | ??????????????????# """"" #??????##?????????????? | | ??????????????????# """"" ####### ###???????????? | | ?????????????###### """"" ## [[[ #???????????? | | ????????????####### ## [[[ #???????????? | | ????????????# " ##w######## [[[ #???????????? | | ????????????# "% #= #???????????? | | ????????????# " + * #???????????? | | ????????????# #= #???????????? | | ????????????# ## ! #???????????? | | ????????????## """"" ## #???????????? | | ??? ########## """"" ## #???????????? | | ??? ########## """"" ##+########???????????? | | ??? # # """"" ## #??????????????????? | | ??? #""" # """"" #??????????????????? | | ??? #""" # """"" #??????????????????? | | ??? #""" # """"" ########???????????? | | ??? #""" + #;;;;######???????????? | | ???## #ag @ ; ##???????????? | | ???## # #########;; ##???????????? | | ???## # ######## ; ##???????????? | | ???## # ##?????# ; ##???????????? | | ???########### ##?????# ; ]##???????????? | | ???########### ######## "g % ##???????????? | | ????????????## ########"""rg;;;;#####??????????? | | ????????????## %* ;######??????????? | | ????????????## ; [ ##??????????? | | ????????????## # ##??????????? | | ????????????####+####### #### # ##??????????? | | ????????????## #### #### # ! ##??????????? | | ????????????## "" ########### + ##??????????? | | ????????????## """ ############# ##??????????? | | ????????????## S" ##???????#### ##??????????? | | ????????????## ##??????????# ##??????????? | | ????????????## ##??????????# ##??????????? | | ????????????##########??????????#######??????????? | | | | | | | | | | | | | | | +----------------------------------------------------+ Best States ------------- Heat Dissipation 28 Energy Generation 12 Energy Capacity 265 Matter Stores 300 Matter Capacity 300 Sight Range 16 Robot Scan Range 14 Terrain Scan Density 10 ECM Strength 1 Armor Coverage 150 Resistance: KI 20 Resistance: TH 20 Resistance: EX 20 Resistance: EM 20 Resistance: I 20 Resistance: S 20 Resistance: P 20 Evasion (%) 40 Targeting Accuracy 6 Recoil Reduction 2 Offensive Hacking 10 Item Schematics ----------------- Lgt. Armor Plating | -9/Materials | Scanalyzed Robot Schematics ------------------ None Fabricated ------------ Nothing Alien Tech Used ----------------- None Achievements -------------- None Challenges ------------ None Game ------ Seed ClaymoresNetworkShearcannon Manual? 0 Play Time 00:18:55 Cumulative 21.9 hours Start 2022.04.17 @ 16:40:00 End 2022.04.17 @ 16:54:06 Sessions 1 Manual Loads 0 Difficulty Adventurer Special Mode None Game No. 53 Rogue 43 Adventurer 10 Explorer 0 Win Type - Total 0 Types 0/0/0/0/0/0/0/0/0 Lore% 14 Gallery% 19 Achievement% 16 Wizard Run 0 Options --------- ASCII 0 Keyboard 0 Movement Mouse Keybinds 0 Fullscreen 1 Font 18/SmallcapsGlow Map View 76x50 Tactical HUD 0 Map Filters NONE Filters NONE Steam 1 RUN: 7569e5dd-c3b9-4d25-b8ec-ae91ce1e40e4